bitfinex/quotes_SOLUSD_20241113
["timestamp","ask_amount","ask_price","bid_price","bid_amount"]
[1731468005359,13.90112751,207.61,207.55,13.90112751]
[1731468005668,13.90112751,207.65,207.58,13.90112751]
[1731468005869,13.90112751,207.65,207.56,13.90112751]
[1731468006048,13.90112751,207.63,207.56,13.90112751]
[1731468006251,13.90112751,207.63,207.54,36.01992751]
[1731468006447,13.90112751,207.61,207.54,36.01992751]
[1731468006651,13.90112751,207.59,207.54,22.1188]
[1731468006855,13.90112751,207.61,207.54,22.1188]
[1731468007054,13.90112751,207.61,207.54,36.01992751]
[1731468007362,13.90112751,207.67,207.6,13.90112751]
[1731468007681,4.8151,207.68,207.6,13.90112751]
[1731468008161,4.8151,207.68,207.62,13.90112751]
[1731468008373,18.71582751,207.7,207.62,13.90112751]
[1731468008553,18.71582751,207.7,207.64,13.90112751]
[1731468008554,4.8147,207.7,207.64,13.90112751]
[1731468008749,4.8142,207.72,207.66,13.90112751]
[1731468008970,18.71502751,207.74,207.66,13.90112751]
[1731468009274,13.90112751,207.7,207.64,16.0271]
[1731468009964,13.90112751,207.7,207.62,13.90112751]
[1731468010569,23.776884,207.69,207.62,13.90112751]
[1731468010768,13.90112751,207.66,207.59,16.0271]
[1731468010955,13.90112751,207.62,207.54,36.17482751]
[1731468011273,4.8167,207.61,207.54,36.17482751]
[1731468011854,13.90112751,207.64,207.56,13.90112751]
[1731468012354,13.90112751,207.63,207.56,13.90112751]
[1731468012757,23.776884,207.64,207.58,13.90112751]
[1731468013050,23.776884,207.64,207.57,13.90112751]
[1731468013253,13.311,207.71,207.54,22.2737]
[1731468013254,13.90112751,207.69,207.61,13.90112751]
[1731468013681,4.8147,207.7,207.63,13.90112751]
[1731468013866,173.6339,207.75,207.54,22.3737]
[1731468013867,13.90112751,207.72,207.64,13.90112751]
[1731468014967,4.8144,207.71,207.64,13.90112751]
[1731468015156,13.90112751,207.68,207.55,20.0]
[1731468015472,13.90112751,207.68,207.6,13.90112751]
[1731468016363,4.8153,207.67,207.6,13.90112751]
[1731468016562,18.71522751,207.72,207.65,13.90112751]
[1731468016868,20.38922751,207.76,207.69,13.90112751]
[1731468017071,18.71452751,207.76,207.69,13.90112751]
[1731468017274,4.8134,207.76,207.7,13.90112751]
[1731468017655,18.71402751,207.78,207.71,13.90112751]
[1731468017854,4.8129,207.78,207.71,13.90112751]
[1731468018460,18.71402751,207.78,207.71,13.90112751]
[1731468018666,7.1672,207.82,207.75,13.90112751]
[1731468018667,13.90112751,207.82,207.75,13.90112751]
[1731468018861,13.90112751,207.84,207.77,13.90112751]
[1731468019180,13.90112751,207.83,207.76,13.90112751]
[1731468020064,13.90112751,207.84,207.77,13.90112751]
[1731468020367,13.90112751,207.83,207.71,20.0]
[1731468020572,13.90112751,207.8,207.71,20.0]
[1731468020773,13.90112751,207.81,207.74,13.90112751]
[1731468021097,4.8113,207.85,207.75,13.90112751]
[1731468021098,13.90112751,207.83,207.75,13.90112751]
[1731468021369,13.90112751,207.84,207.76,13.90112751]
[1731468022068,4.8113,207.85,207.78,13.90112751]
[1731468022265,4.8113,207.85,207.8,13.90112751]
[1731468022582,4.8113,207.85,207.78,13.90112751]
[1731468022881,18.71242751,207.85,207.78,13.90112751]
[1731468023683,23.776884,207.84,207.76,13.90112751]
[1731468024260,4.8116,207.83,207.76,13.90112751]
[1731468025281,23.776884,207.82,207.76,13.90112751]
[1731468025470,18.71272751,207.83,207.76,13.90112751]
[1731468025796,23.776884,207.82,207.76,13.90112751]
[1731468026280,28.588884,207.82,207.76,13.90112751]
[1731468027574,161.6,207.86,207.75,15.3615]
[1731468027575,166.4111,207.86,207.8,13.90112751]
[1731468027778,4.8111,207.86,207.8,13.90112751]
[1731468028078,4.8111,207.86,207.78,13.90112751]
[1731468030159,23.776884,207.85,207.78,13.90112751]
[1731468030484,37.67801151,207.85,207.78,13.90112751]
[1731468030660,23.776884,207.85,207.78,13.90112751]
[1731468030860,5.2993221,207.88,207.75,21.6488]
[1731468031072,23.776884,207.87,207.8,13.90112751]
[1731468031384,23.776884,207.87,207.75,21.6488]
[1731468031385,23.776884,207.81,207.7,22.6687]
[1731468031564,13.90112751,207.76,207.7,16.4319]
[1731468031757,13.90112751,207.74,207.66,13.90112751]
[1731468032164,13.90112751,207.7,207.65,16.4319]
[1731468032368,13.90112751,207.7,207.62,13.90112751]
[1731468032564,13.90112751,207.68,207.59,22.6687]
[1731468032862,13.90112751,207.7,207.62,13.90112751]
[1731468033067,23.776884,207.69,207.62,13.90112751]
[1731468033363,13.90112751,207.7,207.62,13.90112751]
[1731468033562,13.90112751,207.7,207.59,22.6687]
[1731468033563,18.71582751,207.7,207.59,22.6687]
[1731468033774,23.776884,207.69,207.61,13.90112751]
[1731468034368,18.71582751,207.7,207.63,13.90112751]
[1731468034686,13.90112751,207.68,207.6,13.90112751]
[1731468034871,4.8153,207.67,207.6,22.24832606]
[1731468035467,46.02521006,207.66,207.56,22.24832606]
[1731468035992,46.02521006,207.66,207.58,22.24832606]
[1731468036570,23.776884,207.66,207.6,22.24832606]
[1731468036873,22.24832606,207.68,207.62,22.24832606]
[1731468036874,23.776884,207.68,207.62,22.24832606]
[1731468037074,23.776884,207.68,207.55,20.0]
[1731468037281,50.84031006,207.68,207.59,22.24832606]
[1731468037479,23.776884,207.64,207.54,6.2368]
[1731468037669,23.776884,207.64,207.56,22.24832606]
[1731468038170,22.24832606,207.61,207.54,22.24832606]
[1731468038573,23.776884,207.62,207.54,22.24832606]
[1731468039073,161.6,207.67,207.6,22.24832606]
[1731468039280,183.84832606,207.71,207.63,22.24832606]
[1731468039483,188.66282606,207.71,207.63,22.24832606]
[1731468040274,22.24832606,207.69,207.63,22.24832606]
[1731468040874,188.66282606,207.71,207.63,22.24832606]
[1731468041180,188.66282606,207.71,207.53,16.4319]
[1731468041181,161.6,207.71,207.65,22.24832606]
[1731468041471,22.24832606,207.77,207.7,22.24832606]
[1731468041798,22.24832606,207.77,207.64,15.0712]
[1731468041799,22.24832606,207.75,207.66,22.24832606]
[1731468041993,22.24832606,207.71,207.61,6.2055]
[1731468042293,22.24832606,207.71,207.63,22.24832606]
[1731468042599,4.8146,207.7,207.63,22.24832606]
[1731468042797,23.776884,207.69,207.63,22.24832606]
[1731468043091,46.02521006,207.69,207.61,28.45382606]
[1731468043295,46.02521006,207.69,207.63,22.24832606]
[1731468044288,46.02521006,207.69,207.61,28.45382606]
[1731468044596,46.02521006,207.69,207.59,15.0712]
[1731468044597,46.02521006,207.67,207.59,37.31952606]
[1731468045594,46.02521006,207.67,207.56,6.2055]
[1731468045595,23.776884,207.64,207.58,22.24832606]
[1731468046480,4.8155,207.67,207.63,22.24832606]
[1731468046683,23.776884,207.66,207.63,22.24832606]
[1731468046994,23.776884,207.68,207.63,22.24832606]
[1731468047491,22.24832606,207.71,207.63,22.24832606]
[1731468047676,27.06282606,207.71,207.63,22.24832606]
[1731468049187,23.776884,207.7,207.63,22.24832606]
[1731468049389,4.8134,207.75,207.69,22.24832606]
[1731468049897,27.06172606,207.75,207.67,22.24832606]
[1731468050579,22.24832606,207.73,207.65,22.24832606]
[1731468050977,4.8134,207.75,207.69,22.24832606]
[1731468051578,4.8131,207.77,207.71,22.24832606]
[1731468051784,4.8131,207.77,207.72,22.24832606]
[1731468052097,22.24832606,207.77,207.69,22.24832606]
[1731468052395,22.24832606,207.74,207.66,22.24832606]
[1731468052583,22.24832606,207.72,207.64,22.24832606]
[1731468053090,22.24832606,207.7,207.62,28.60422606]
[1731468053501,22.24832606,207.7,207.62,22.24832606]
[1731468054497,22.24832606,207.68,207.61,16.1037]
[1731468054681,27.06342606,207.68,207.61,16.1037]
[1731468055192,22.24832606,207.74,207.66,22.24832606]
[1731468055382,22.24832606,207.71,207.63,22.24832606]
[1731468055574,4.8137,207.74,207.62,22.24832606]
[1731468055575,22.24832606,207.7,207.62,22.24832606]
[1731468056584,22.24832606,207.71,207.63,22.24832606]
[1731468056803,22.24832606,207.71,207.63,13.89999194]
[1731468056804,13.89999194,207.71,207.63,13.89999194]
[1731468056976,37.67687594,207.7,207.62,13.89999194]
[1731468057577,4.8148,207.69,207.62,13.89999194]
[1731468057779,37.67687594,207.7,207.65,13.89999194]
[1731468057780,4.8146,207.7,207.65,13.89999194]
[1731468058633,23.776884,207.71,207.65,13.89999194]
[1731468059112,23.776884,207.73,207.65,13.89999194]
[1731468060212,28.590884,207.73,207.65,13.89999194]
[1731468060502,23.776884,207.74,207.68,13.89999194]
[1731468060813,13.89999194,207.76,207.68,13.89999194]
[1731468061307,13.89999194,207.72,207.64,13.89999194]
[1731468061612,13.89999194,207.67,207.61,16.1037]
[1731468062106,28.592584,207.66,207.61,16.1037]
[1731468062295,23.776884,207.64,207.57,6.3559]
[1731468062513,13.89999194,207.61,207.56,15.9418]
[1731468062716,23.776884,207.64,207.56,29.84179194]
[1731468062921,23.776884,207.64,207.58,13.89999194]
[1731468063224,23.776884,207.64,207.56,29.84179194]
[1731468063599,13.89999194,207.61,207.54,13.89999194]
[1731468063817,23.776884,207.58,207.51,15.9418]
[1731468064021,13.89999194,207.57,207.51,15.9418]
[1731468064205,23.776884,207.56,207.51,15.9418]
[1731468064800,23.776884,207.58,207.51,29.84179194]
[1731468065099,18.71689194,207.61,207.53,13.89999194]
[1731468065418,23.776884,207.6,207.55,13.89999194]
[1731468065729,23.776884,207.6,207.51,15.9418]
[1731468065730,23.776884,207.6,207.53,13.89999194]
[1731468066317,28.593884,207.6,207.53,13.89999194]
[1731468066622,28.593884,207.6,207.52,13.89999194]
[1731468067522,28.593484,207.62,207.56,13.89999194]
[1731468067904,4.8161,207.64,207.6,13.89999194]
[1731468068103,4.8155,207.66,207.6,13.89999194]
[1731468069120,4.8155,207.66,207.51,16.0418]
[1731468069121,4.8152,207.68,207.62,13.89999194]
[1731468069427,13.89999194,207.72,207.64,13.89999194]
[1731468069614,4.8148,207.7,207.64,13.89999194]
[1731468069800,4.8143,207.72,207.67,13.89999194]
[1731468070119,13.89999194,207.72,207.62,15.3292]
[1731468070427,13.89999194,207.71,207.64,13.89999194]
[1731468070722,13.89999194,207.72,207.64,13.89999194]
[1731468070924,161.7,207.77,207.64,22.24016371]
[1731468070925,22.24016371,207.71,207.64,22.24016371]
[1731468071313,161.6,207.77,207.68,22.24016371]
[1731468071622,27.05286371,207.78,207.71,22.24016371]
[1731468072321,27.05286371,207.78,207.69,22.24016371]
[1731468072506,27.05256371,207.8,207.73,22.24016371]
[1731468072706,22.24016371,207.78,207.71,22.24016371]
[1731468073237,22.24016371,207.76,207.69,28.52966371]
[1731468073532,27.05346371,207.76,207.69,28.52966371]
[1731468073835,23.776884,207.75,207.67,22.24016371]
[1731468074124,22.24016371,207.7,207.63,6.2579]
[1731468074326,23.776884,207.69,207.63,6.2579]
[1731468074536,23.776884,207.71,207.67,22.24016371]
[1731468074707,4.8129,207.78,207.7,22.24016371]
[1731468075021,4.8129,207.78,207.72,22.24016371]
[1731468075219,22.24016371,207.81,207.72,22.24016371]
[1731468075422,22.24016371,207.79,207.72,22.24016371]
[1731468076530,28.589584,207.78,207.72,22.24016371]
[1731468077431,22.24016371,207.84,207.76,22.24016371]
[1731468077726,0.4888221,207.88,207.73,16.1215]
[1731468077727,22.24016371,207.86,207.78,22.24016371]
[1731468078730,23.776884,207.85,207.78,22.24016371]
[1731468078927,23.776884,207.83,207.78,22.24016371]
[1731468080105,28.588484,207.83,207.76,22.24016371]
[1731468080324,23.776884,207.81,207.74,6.3446]
[1731468080528,23.776884,207.81,207.75,22.24016371]
[1731468081031,23.776884,207.83,207.77,22.24016371]
[1731468081818,22.72898581,207.88,207.81,22.24016371]
[1731468082210,0.4888221,207.88,207.83,22.24016371]
[1731468082920,0.4888221,207.88,207.74,6.3446]
[1731468083224,22.24016371,207.82,207.74,28.58476371]
[1731468083412,22.24016371,207.82,207.74,6.3446]
[1731468083738,22.24016371,207.8,207.73,16.1215]
[1731468084214,23.776884,207.79,207.73,16.1215]
[1731468084826,23.776884,207.83,207.77,22.24016371]
[1731468085125,23.776884,207.84,207.77,22.24016371]
[1731468085327,4.811,207.86,207.79,22.24016371]
[1731468085516,4.811,207.86,207.81,22.24016371]
[1731468085835,5.2994221,207.88,207.81,22.24016371]
[1731468086026,5.2994221,207.88,207.82,22.24016371]
[1731468086406,0.4888221,207.88,207.82,22.24016371]
[1731468086607,5.2993221,207.88,207.82,22.24016371]
[1731468086824,0.4888221,207.88,207.82,22.24016371]
[1731468088434,24.2657061,207.88,207.82,22.24016371]
[1731468088930,24.2657061,207.88,207.8,6.3446]
[1731468088931,0.4888221,207.88,207.86,22.24016371]
[1731468089634,0.4888221,207.88,207.84,15.1797]
[1731468089635,0.4888221,207.88,207.87,22.24016371]
[1731468090814,4.8082,207.98,207.87,13.8618971]
[1731468091029,4.8082,207.98,207.92,13.8618971]
[1731468091223,4.8082,207.98,207.93,13.8618971]
[1731468091732,23.776884,207.97,207.93,13.8618971]
[1731468092128,23.776884,207.97,207.89,13.8618971]
[1731468092129,23.776884,207.95,207.89,13.8618971]
[1731468092329,23.776884,207.95,207.88,13.8618971]
[1731468093330,23.776884,207.93,207.86,13.8618971]
[1731468093531,23.776884,207.89,207.84,15.1797]
[1731468093738,23.776884,207.87,207.81,13.8618971]
[1731468093918,23.776884,207.87,207.8,6.3446]
[1731468094229,23.776884,207.87,207.82,13.8618971]
[1731468094618,23.776884,207.88,207.82,13.8618971]
[1731468094827,23.776884,207.9,207.84,22.19742572]
[1731468095017,23.776884,207.9,207.8,28.54202572]
[1731468095018,23.776884,207.9,207.85,22.19742572]
[1731468095335,23.776884,207.9,207.83,22.19742572]
[1731468096423,28.586884,207.9,207.83,22.19742572]
[1731468097833,161.6,207.96,207.89,22.19742572]
[1731468098011,4.8088,207.96,207.89,22.19742572]
[1731468098922,4.8083,207.98,207.91,22.19742572]
[1731468099236,4.8083,207.98,207.93,22.19742572]
[1731468099744,22.19742572,208.01,207.93,22.19742572]
[1731468099914,23.776884,207.99,207.93,22.19742572]
[1731468100317,45.97430972,207.99,207.91,22.19742572]
[1731468101740,23.776884,207.96,207.89,38.35852572]
[1731468102036,23.776884,207.94,207.89,38.35852572]
[1731468102423,23.776884,207.94,207.91,22.19742572]
[1731468104021,28.585984,207.94,207.89,16.1611]
[1731468104221,28.585984,207.94,207.89,22.19742572]
[1731468106737,28.585984,207.94,207.91,22.19742572]
[1731468107321,28.585984,207.94,207.87,22.19742572]
[1731468107726,28.585984,207.94,207.84,15.1324]
[1731468107922,28.585984,207.94,207.86,22.19742572]
[1731468108123,22.19742572,207.93,207.86,22.19742572]
[1731468108332,28.585984,207.94,207.86,22.19742572]
[1731468108931,28.585984,207.94,207.88,22.19742572]
[1731468110725,28.585984,207.94,207.9,22.19742572]
[1731468111427,28.585984,207.94,207.84,15.1324]
[1731468111649,28.585984,207.94,207.92,22.19742572]
[1731468112325,28.585984,207.94,207.9,22.19742572]
[1731468112525,28.585984,207.94,207.88,22.19742572]
[1731468112737,28.585984,207.94,207.9,22.19742572]
[1731468115746,23.776884,207.94,207.9,22.19742572]
[1731468116046,23.776884,207.95,207.9,22.19742572]
[1731468116547,23.776884,207.95,207.88,22.19742572]
[1731468116744,23.776884,207.95,207.84,15.1324]
[1731468116944,23.776884,207.95,207.88,13.86733917]
[1731468118045,23.776884,207.93,207.88,13.86733917]
[1731468118677,23.776884,207.93,207.9,13.86733917]
[1731468119039,23.776884,207.93,207.92,13.86733917]
[1731468119242,23.776884,207.93,207.9,13.86733917]
[1731468120162,28.586284,207.93,207.9,13.86733917]
[1731468121555,28.586284,207.93,207.84,15.1324]
[1731468121750,28.586284,207.93,207.86,13.86733917]
[1731468122257,23.776884,207.91,207.84,28.99973917]
[1731468122455,23.776884,207.89,207.82,13.86733917]
[1731468123457,4.8104,207.88,207.82,13.86733917]
[1731468123643,23.776884,207.87,207.84,13.86733917]
[1731468125143,23.776884,207.87,207.78,16.2449]
[1731468125144,23.776884,207.87,207.86,13.86733917]
[1731468125836,23.776884,207.87,207.84,13.86733917]
[1731468126057,28.587684,207.87,207.82,13.86733917]
[1731468126436,28.587684,207.87,207.84,13.86733917]
[1731468128366,28.587684,207.87,207.82,13.86733917]
[1731468128567,23.776884,207.85,207.75,6.3747]
[1731468128735,13.86733917,207.78,207.7,16.0785]
[1731468129058,23.776884,207.71,207.63,16.0785]
[1731468129252,13.86733917,207.66,207.58,29.94583917]
[1731468129435,13.86733917,207.66,207.51,29.94583917]
[1731468129436,23.776884,207.59,207.51,29.94583917]
[1731468129636,23.776884,207.59,207.45,8.5901013]
[1731468129637,23.776884,207.57,207.49,13.86733917]
[1731468130036,23.776884,207.57,207.55,13.86733917]
[1731468130446,175.46733917,207.71,207.55,13.86733917]
[1731468130646,28.591684,207.7,207.63,13.86733917]
[1731468131071,23.776884,207.68,207.46,0.2]
[1731468131363,23.776884,207.6,207.52,13.86733917]
[1731468132449,13.86733917,207.59,207.52,13.86733917]
[1731468132661,23.776884,207.58,207.5,13.86733917]
[1731468132862,23.776884,207.58,207.51,22.26614035]
[1731468133038,23.776884,207.56,207.49,22.26614035]
[1731468133362,23.776884,207.54,207.47,22.26614035]
[1731468133700,23.776884,207.56,207.49,22.26614035]
[1731468134759,22.26614035,207.53,207.45,22.26614035]
[1731468135344,23.776884,207.52,207.45,22.26614035]
[1731468135842,23.776884,207.54,207.47,22.26614035]
[1731468136852,27.08334035,207.59,207.51,22.26614035]
[1731468137050,22.26614035,207.59,207.51,22.26614035]
[1731468137249,22.26614035,207.57,207.49,22.26614035]
[1731468137880,22.26614035,207.54,207.44,16.0785]
[1731468138040,22.26614035,207.56,207.47,22.26614035]
[1731468138473,23.776884,207.55,207.47,22.26614035]
[1731468139365,23.776884,207.53,207.47,22.26614035]
[1731468139570,23.776884,207.51,207.45,22.26614035]
[1731468139753,23.776884,207.49,207.43,22.26614035]
[1731468140661,23.776884,207.49,207.41,22.26614035]
[1731468141059,22.26614035,207.48,207.39,6.4667]
[1731468141366,46.04302435,207.47,207.39,22.26614035]
[1731468141669,46.04302435,207.47,207.37,22.75496245]
[1731468141670,23.776884,207.44,207.37,22.75496245]
[1731468141869,22.26614035,207.43,207.37,0.4888221]
[1731468142073,22.26614035,207.41,207.37,0.4888221]
[1731468142247,23.776884,207.4,207.37,0.4888221]
[1731468142447,46.04302435,207.4,207.37,0.4888221]
[1731468142649,46.04302435,207.38,207.37,0.4888221]
[1731468142879,23.776884,207.38,207.37,0.4888221]
[1731468143170,46.04302435,207.38,207.37,0.4888221]
[1731468144476,46.04302435,207.38,207.26,16.3978]
[1731468144477,23.776884,207.36,207.26,16.3978]
[1731468144665,22.26614035,207.28,207.21,22.26614035]
[1731468144973,22.26614035,207.24,207.17,22.26614035]
[1731468146554,23.776884,207.23,207.17,22.26614035]
[1731468146965,23.776884,207.25,207.19,22.26614035]
[1731468149163,22.26614035,207.24,207.17,22.26614035]
[1731468149368,22.26614035,207.22,207.16,0.4888221]
[1731468149568,23.776884,207.21,207.16,0.4888221]
[1731468150458,23.776884,207.19,207.16,0.4888221]
[1731468150761,22.26614035,207.18,207.16,0.4888221]
[1731468151057,23.776884,207.17,207.16,0.4888221]
[1731468152174,46.04302435,207.17,207.16,0.4888221]
[1731468153597,46.04302435,207.17,207.03,37.89904035]
[1731468153598,23.776884,207.15,207.03,37.89904035]
[1731468153900,22.26614035,207.11,207.03,37.89904035]
[1731468154267,22.26614035,207.09,207.01,22.26614035]
[1731468154470,22.26614035,207.11,207.03,22.26614035]
[1731468154670,161.6,207.12,207.04,22.26614035]
[1731468154870,191.32906208,207.12,207.05,22.26614035]
[1731468155082,191.32906208,207.12,207.04,22.26614035]
[1731468155283,169.06292173,207.12,207.05,22.26614035]
[1731468155469,161.6,207.17,207.1,22.26614035]
[1731468155670,27.09294035,207.18,207.11,22.26614035]
[1731468155888,27.09294035,207.18,207.1,22.26614035]
[1731468156578,27.09294035,207.18,207.0,0.1]
[1731468156782,27.09294035,207.18,207.1,22.26614035]
[1731468156968,23.776884,207.17,207.1,22.26614035]
[1731468157672,46.04302435,207.17,207.1,22.26614035]
[1731468158489,23.776884,207.15,207.1,22.26614035]
[1731468159185,22.26614035,207.13,207.05,22.26614035]
[1731468159394,23.776884,207.11,207.04,22.26614035]
[1731468159581,46.04302435,207.11,207.04,22.26614035]
[1731468159775,23.776884,207.11,207.06,22.26614035]
[1731468159969,46.04302435,207.14,207.06,22.26614035]
[1731468160296,29.72651027,207.2,207.12,22.26614035]
[1731468160990,34.55281027,207.2,207.13,22.26614035]
[1731468161490,34.55281027,207.2,207.12,22.26614035]
[1731468161982,34.55281027,207.2,207.02,0.1]
[1731468161983,7.46036992,207.2,207.16,22.26614035]
[1731468162189,4.8259,207.22,207.16,22.26614035]
[1731468162493,188.69154035,207.24,207.16,22.26614035]
[1731468163268,23.776884,207.22,207.16,22.26614035]
[1731468163473,4.8244,207.28,207.21,22.26614035]
[1731468163674,27.09054035,207.28,207.19,22.26614035]
[1731468163873,27.09054035,207.28,207.12,0.1]
[1731468163874,22.26614035,207.26,207.18,22.26614035]
[1731468164873,22.26614035,207.24,207.16,22.26614035]
[1731468165100,22.26614035,207.22,207.14,22.26614035]
[1731468165271,22.26614035,207.21,207.13,22.26614035]
[1731468165682,23.776884,207.2,207.13,22.26614035]
[1731468166470,23.776884,207.22,207.15,22.26614035]
[1731468167568,23.776884,207.2,207.13,22.26614035]
[1731468167775,23.776884,207.18,207.11,22.26614035]
[1731468169904,23.776884,207.2,207.13,22.26614035]
[1731468170278,23.776884,207.2,207.14,22.26614035]
[1731468170483,23.776884,207.2,207.13,22.26614035]
[1731468170703,23.776884,207.18,207.13,22.26614035]
[1731468171092,23.776884,207.2,207.13,22.26614035]
[1731468172099,22.26614035,207.25,207.17,22.26614035]
[1731468172575,22.26614035,207.23,207.15,22.26614035]
[1731468173500,23.776884,207.24,207.17,22.26614035]
[1731468175401,22.26614035,207.19,207.13,20.0]
[1731468175604,22.26614035,207.21,207.13,20.0]
[1731468175900,23.776884,207.2,207.14,22.26614035]
[1731468177793,23.776884,207.2,207.12,22.26614035]
[1731468178302,22.26614035,207.17,207.09,6.2412]
[1731468178478,23.776884,207.14,207.09,6.2412]
[1731468179101,23.776884,207.16,207.09,6.2412]
[1731468180285,161.6,207.22,207.12,22.26614035]
[1731468180286,22.26614035,207.21,207.12,22.26614035]
[1731468180485,22.26614035,207.21,207.14,22.26614035]
[1731468180689,23.776884,207.2,207.14,22.26614035]
[1731468181903,23.776884,207.2,207.13,22.26614035]
[1731468183505,50.86932435,207.2,207.12,22.26614035]
[1731468183711,22.26614035,207.15,207.09,6.2412]
[1731468183899,23.776884,207.14,207.09,6.2412]
[1731468184207,22.26614035,207.11,207.07,15.2884]
[1731468184506,23.776884,207.1,207.04,6.0707]
[1731468185109,46.04302435,207.1,207.04,6.0707]
[1731468186090,23.776884,207.11,207.04,6.0707]
[1731468187913,23.776884,207.15,207.08,22.26614035]
[1731468188090,4.827,207.17,207.09,22.26614035]
[1731468188091,22.26614035,207.17,207.09,22.26614035]
[1731468188591,22.26614035,207.16,207.08,22.26614035]
[1731468189207,23.776884,207.15,207.08,22.26614035]
[1731468189615,46.04302435,207.15,207.07,22.26614035]
[1731468189784,23.776884,207.15,207.08,22.26614035]
[1731468189985,22.26614035,207.22,207.14,22.26614035]
[1731468190295,22.26614035,207.21,207.14,22.26614035]
[1731468191209,27.09214035,207.21,207.14,22.26614035]
[1731468191810,27.09214035,207.21,207.13,22.26614035]
[1731468192006,22.26614035,207.19,207.12,22.26614035]
[1731468192309,22.26614035,207.2,207.13,22.26614035]
[1731468193191,23.776884,207.19,207.13,22.26614035]
[1731468194113,7.45763738,207.25,207.18,22.26614035]
[1731468194283,22.26614035,207.28,207.2,22.26614035]
[1731468194703,22.26614035,207.22,207.14,38.87704035]
[1731468195014,16.8877,207.25,207.06,16.6109]
[1731468195314,22.26614035,207.16,207.08,22.26614035]
[1731468195490,23.776884,207.15,207.08,22.26614035]
[1731468195694,23.776884,207.16,207.1,22.26614035]
[1731468196392,22.26614035,207.2,207.13,22.26614035]
[1731468196604,22.26614035,207.25,207.17,22.26614035]
[1731468196803,22.26614035,207.25,207.18,22.26614035]
[1731468197002,22.26614035,207.26,207.19,22.26614035]
[1731468197329,22.26614035,207.24,207.16,22.26614035]
[1731468197811,23.776884,207.23,207.17,22.26614035]
[1731468198196,23.776884,207.23,207.16,22.26614035]
[1731468198619,22.26614035,207.22,207.15,22.26614035]
[1731468198914,22.26614035,207.17,207.06,16.6109]
[1731468199107,22.26614035,207.15,207.07,22.26614035]
[1731468199288,23.776884,207.12,207.06,16.6109]
[1731468199487,23.776884,207.12,207.06,38.87704035]
[1731468199693,23.776884,207.14,207.06,38.87704035]
[1731468199890,22.26614035,207.17,207.08,22.26614035]
[1731468200104,22.26614035,207.22,207.14,22.26614035]
[1731468200612,22.26614035,207.23,207.16,22.26614035]
[1731468200817,22.26614035,207.18,207.1,22.26614035]
[1731468201021,22.26614035,207.19,207.11,22.26614035]
[1731468201244,22.26614035,207.19,207.12,22.26614035]
[1731468201717,23.776884,207.18,207.12,22.26614035]
[1731468202096,22.26614035,207.19,207.12,22.26614035]
[1731468202097,23.776884,207.19,207.12,22.26614035]
[1731468202995,46.04302435,207.19,207.12,22.26614035]
[1731468203309,23.776884,207.17,207.11,22.26614035]
[1731468203514,23.776884,207.16,207.1,22.26614035]
[1731468204188,23.776884,207.14,207.07,22.26614035]
[1731468204893,161.6,207.17,207.11,22.26614035]
[1731468205102,23.776884,207.16,207.12,22.26614035]
[1731468206504,23.776884,207.16,207.1,22.26614035]
[1731468206925,23.776884,207.16,207.08,22.26614035]
[1731468207223,23.776884,207.11,207.06,38.87704035]
[1731468207405,43.54302435,207.11,207.06,16.6109]
[1731468207822,22.26614035,207.09,207.01,37.40384035]
[1731468208526,22.26614035,207.09,207.01,37.64156955]
[1731468209627,23.776884,207.08,207.03,22.26614035]
[1731468209923,23.776884,207.08,207.05,22.26614035]
[1731468210098,23.776884,207.1,207.03,22.26614035]
[1731468210295,23.776884,207.08,207.01,37.64156955]
[1731468210517,23.776884,207.08,207.03,22.26614035]
[1731468210705,23.776884,207.1,207.05,22.26614035]
[1731468210904,23.776884,207.1,207.03,22.26614035]
[1731468211822,28.605584,207.1,207.03,22.26614035]
[1731468211999,23.776884,207.1,207.05,22.26614035]
[1731468212205,23.776884,207.11,207.05,22.26614035]
[1731468212916,46.04302435,207.11,207.03,22.26614035]
[1731468213110,23.776884,207.09,207.03,22.26614035]
[1731468213411,23.776884,207.09,207.01,37.64156955]
[1731468213610,46.04302435,207.09,207.01,37.64156955]
[1731468214613,46.04302435,207.09,207.01,22.50386955]
[1731468215305,22.26614035,207.05,207.01,0.2377292]
[1731468215503,23.776884,207.04,207.01,0.2377292]
[1731468215717,23.776884,207.06,207.01,22.50386955]
[1731468216025,23.776884,207.08,207.03,22.26614035]
[1731468216203,23.776884,207.1,207.03,22.26614035]
[1731468216404,23.776884,207.1,207.05,22.26614035]
[1731468216603,22.26614035,207.13,207.05,22.26614035]